[Event "*** Titled Tuesday Blitz"]
[Site "Chess.com"]
[Date "2021.03.16"]
[Round "1"]
[White "ChessLover0108"]
[Black "eCztery"]
[Result "1-0"]
[WhiteElo "2779"]
[BlackElo "2414"]
[TimeControl "180+1"]
[EndTime "10:03:26 PDT"]
[Termination "ChessLover0108 won by resignation"]

1. Nf3 {[%clk 0:02:59.3]} 1... c5 {[%clk 0:02:52.4]} 2. c3 {[%clk 0:02:53.1]}
2... d5 {[%clk 0:02:41.8]} 3. d4 {[%clk 0:02:50.7]} 3... Nc6 {[%clk 0:02:37.6]}
4. Bf4 {[%clk 0:02:45.6]} 4... Nf6 {[%clk 0:02:35.5]} 5. e3 {[%clk 0:02:44.7]}
5... e6 {[%clk 0:02:35.8]} 6. Nbd2 {[%clk 0:02:40.9]} 6... Bd6 {[%clk
0:02:33.8]} 7. dxc5 {[%clk 0:02:41.3]} 7... Bxc5 {[%clk 0:02:26.5]} 8. Bd3
{[%clk 0:02:41.2]} 8... O-O {[%clk 0:02:23.3]} 9. O-O {[%clk 0:02:40]} 9... Re8
{[%clk 0:02:21.6]} 10. e4 {[%clk 0:02:39]} 10... dxe4 {[%clk 0:02:18.5]} 11.
Nxe4 {[%clk 0:02:39.9]} 11... Nxe4 {[%clk 0:02:18.6]} 12. Bxe4 {[%clk
0:02:39.5]} 12... Qxd1 {[%clk 0:02:17.9]} 13. Raxd1 {[%clk 0:02:40.4]} 13... f5
{[%clk 0:02:08.9]} 14. Bxc6 {[%clk 0:02:37]} 14... bxc6 {[%clk 0:02:09.8]} 15.
Ne5 {[%clk 0:02:37.9]} 15... Bb7 {[%clk 0:01:42.7]} 16. Rd7 {[%clk 0:02:35.4]}
16... Rab8 {[%clk 0:01:43.2]} 17. Nd3 {[%clk 0:02:32.1]} 17... Bf8 {[%clk
0:01:31.3]} 18. Bxb8 {[%clk 0:02:30.2]} 18... Rxb8 {[%clk 0:01:32.2]} 19. Ne5
{[%clk 0:02:30.8]} 19... Bc8 {[%clk 0:01:08.3]} 20. Rd8 {[%clk 0:02:29.4]} 1-0

[Event "*** Titled Tuesday Blitz"]
[Site "Chess.com"]
[Date "2021.03.16"]
[Round "1"]
[White "Gabrielian_Artur"]
[Black "DishonorOnYourCow"]
[Result "1-0"]
[WhiteElo "2804"]
[BlackElo "2426"]
[TimeControl "180+1"]
[EndTime "10:03:44 PDT"]
[Termination "Gabrielian_Artur won by resignation"]

1. e4 {[%clk 0:03:00.9]} 1... e5 {[%clk 0:02:58.3]} 2. Nc3 {[%clk 0:03:00.5]}
2... Nc6 {[%clk 0:02:58.8]} 3. g3 {[%clk 0:03:00.6]} 3... Bc5 {[%clk 0:02:58.8]}
4. Bg2 {[%clk 0:03:00.9]} 4... a6 {[%clk 0:02:58.8]} 5. Nge2 {[%clk 0:03:00.7]}
5... d6 {[%clk 0:02:59.3]} 6. O-O {[%clk 0:03:00.5]} 6... Nf6 {[%clk 0:02:59.6]}
7. d3 {[%clk 0:03:00.7]} 7... O-O {[%clk 0:02:59.9]} 8. h3 {[%clk 0:03:01.1]}
8... h6 {[%clk 0:03:00.2]} 9. Kh2 {[%clk 0:03:00.8]} 9... Ba7 {[%clk 0:03:00.8]}
10. f4 {[%clk 0:03:00.4]} 10... Nh7 {[%clk 0:02:51.1]} 11. f5 {[%clk 0:02:58.5]}
11... Nd4 {[%clk 0:02:46.2]} 12. Nxd4 {[%clk 0:02:58]} 12... Bxd4 {[%clk
0:02:47.1]} 13. Ne2 {[%clk 0:02:56.1]} 13... Ba7 {[%clk 0:02:46.6]} 14. g4
{[%clk 0:02:56.2]} 14... c6 {[%clk 0:02:46.3]} 15. Ng3 {[%clk 0:02:56.2]} 15...
d5 {[%clk 0:02:45.8]} 16. Qe2 {[%clk 0:02:55.3]} 16... dxe4 {[%clk 0:02:39.9]}
17. Nxe4 {[%clk 0:02:45.2]} 17... Ng5 {[%clk 0:02:27.6]} 18. Bxg5 {[%clk
0:02:37.5]} 18... hxg5 {[%clk 0:02:27.1]} 19. f6 {[%clk 0:02:38]} 19... Be6
{[%clk 0:02:00.8]} 20. Qd2 {[%clk 0:02:36.2]} 20... g6 {[%clk 0:00:43.9]} 21.
Qxg5 {[%clk 0:02:33.3]} 21... Kh7 {[%clk 0:00:43.5]} 22. Qh4+ {[%clk 0:02:32.9]}
22... Kg8 {[%clk 0:00:43.6]} 23. Qh6 {[%clk 0:02:30.9]} 1-0

[Event "*** Titled Tuesday Blitz"]
[Site "Chess.com"]
[Date "2021.03.16"]
[Round "1"]
[White "Aslanov_Umid"]
[Black "vovachesss"]
[Result "0-1"]
[WhiteElo "2392"]
[BlackElo "2738"]
[TimeControl "180+1"]
[EndTime "10:04:14 PDT"]
[Termination "vovachesss won by resignation"]

1. e4 {[%clk 0:03:00.9]} 1... e5 {[%clk 0:02:59.6]} 2. Nf3 {[%clk 0:03:00.3]}
2... d6 {[%clk 0:02:59]} 3. Bc4 {[%clk 0:03:00.8]} 3... Be7 {[%clk 0:02:57.4]}
4. O-O {[%clk 0:03:01.1]} 4... Nf6 {[%clk 0:02:57.1]} 5. Nc3 {[%clk 0:03:00.2]}
5... O-O {[%clk 0:02:56.4]} 6. h3 {[%clk 0:03:00.2]} 6... c6 {[%clk 0:02:53.2]}
7. a4 {[%clk 0:02:58.4]} 7... Nbd7 {[%clk 0:02:52]} 8. d4 {[%clk 0:02:57.3]}
8... b6 {[%clk 0:02:49.6]} 9. dxe5 {[%clk 0:02:56.1]} 9... dxe5 {[%clk
0:02:49.8]} 10. Qe2 {[%clk 0:02:55.6]} 10... Qc7 {[%clk 0:02:45.9]} 11. Nh4
{[%clk 0:02:51.1]} 11... Nc5 {[%clk 0:02:42.2]} 12. Bg5 {[%clk 0:02:36]} 12...
h6 {[%clk 0:02:34.5]} 13. Bxf6 {[%clk 0:02:35.5]} 13... Bxf6 {[%clk 0:02:35.4]}
14. Nf5 {[%clk 0:02:32.1]} 14... Kh7 {[%clk 0:02:00.8]} 15. b4 {[%clk
0:02:17.2]} 15... Ne6 {[%clk 0:01:59.6]} 16. Rad1 {[%clk 0:02:07.3]} 16... g6
{[%clk 0:01:52.5]} 17. Nd6 {[%clk 0:01:53.9]} 17... Nd4 {[%clk 0:01:43.8]} 18.
Rxd4 {[%clk 0:01:52]} 18... exd4 {[%clk 0:01:44.7]} 19. e5 {[%clk 0:01:52.7]}
19... dxc3 {[%clk 0:01:15.5]} 20. Nxc8 {[%clk 0:01:41]} 20... Bxe5 {[%clk
0:01:13.3]} 21. Re1 {[%clk 0:01:37.7]} 21... Bh2+ {[%clk 0:01:11.6]} 0-1

[Event "*** Titled Tuesday Blitz"]
[Site "Chess.com"]
[Date "2021.03.16"]
[Round "1"]
[White "AlhosaniOmran1"]
[Black "WilliamSchill"]
[Result "1/2-1/2"]
[WhiteElo "2504"]
[BlackElo "2149"]
[TimeControl "180+1"]
[EndTime "10:04:18 PDT"]
[Termination "Game drawn by repetition"]

1. d4 {[%clk 0:03:00.1]} 1... Nf6 {[%clk 0:02:59.1]} 2. c4 {[%clk 0:03:00.4]}
2... g6 {[%clk 0:02:59.1]} 3. Nc3 {[%clk 0:03:00.9]} 3... Bg7 {[%clk 0:02:59.5]}
4. e4 {[%clk 0:03:01]} 4... d6 {[%clk 0:03:00]} 5. Nf3 {[%clk 0:03:01.5]} 5...
O-O {[%clk 0:03:00]} 6. Be2 {[%clk 0:03:01.9]} 6... e5 {[%clk 0:03:00.1]} 7. O-O
{[%clk 0:03:02.2]} 7... Nc6 {[%clk 0:03:00.2]} 8. d5 {[%clk 0:03:00.5]} 8... Ne7
{[%clk 0:03:00.2]} 9. b4 {[%clk 0:02:57.8]} 9... c6 {[%clk 0:03:00.3]} 10. a4
{[%clk 0:02:56]} 10... a5 {[%clk 0:03:00.1]} 11. b5 {[%clk 0:02:56]} 11... c5
{[%clk 0:02:59.8]} 12. Bg5 {[%clk 0:02:53.8]} 12... h6 {[%clk 0:02:57]} 13. Bd2
{[%clk 0:02:48.5]} 13... b6 {[%clk 0:02:56.3]} 14. Qc1 {[%clk 0:02:45.9]} 14...
Kh7 {[%clk 0:02:55.5]} 15. Ne1 {[%clk 0:02:44.4]} 15... Nd7 {[%clk 0:02:51.8]}
16. Nd3 {[%clk 0:02:40.1]} 16... f5 {[%clk 0:02:47.5]} 17. f3 {[%clk 0:02:34.7]}
17... f4 {[%clk 0:02:45.6]} 18. g3 {[%clk 0:02:08.7]} 18... g5 {[%clk 0:02:40]}
19. g4 {[%clk 0:02:08.1]} 19... Ng6 {[%clk 0:02:39.5]} 20. h3 {[%clk 0:02:06.7]}
20... Nf6 {[%clk 0:02:39.2]} 21. Kf2 {[%clk 0:02:05.5]} 21... Ra7 {[%clk
0:02:39.2]} 22. Ke1 {[%clk 0:02:04.6]} 22... h5 {[%clk 0:02:35.4]} 23. Kd1
{[%clk 0:02:04.4]} 23... Rh8 {[%clk 0:02:35.2]} 24. Kc2 {[%clk 0:02:04]} 24...
Kg8 {[%clk 0:02:35]} 25. Kb3 {[%clk 0:02:03.5]} 25... Bf8 {[%clk 0:02:35]} 26.
Rg1 {[%clk 0:02:01.1]} 26... hxg4 {[%clk 0:02:29.9]} 27. hxg4 {[%clk 0:02:02]}
27... Rah7 {[%clk 0:02:29.6]} 28. Qf1 {[%clk 0:01:53.9]} 28... Qe7 {[%clk
0:02:22.4]} 29. Qf2 {[%clk 0:01:39.6]} 29... Rh4 {[%clk 0:02:12.4]} 30. Rg2
{[%clk 0:01:33.8]} 30... R8h6 {[%clk 0:02:08.8]} 31. Rag1 {[%clk 0:01:31.8]}
31... Qh7 {[%clk 0:02:08.1]} 32. Be1 {[%clk 0:01:27.9]} 32... Rh2 {[%clk
0:02:05.5]} 33. Rxh2 {[%clk 0:01:25.7]} 33... Rxh2 {[%clk 0:02:05.2]} 34. Rg2
{[%clk 0:01:26.2]} 34... Rh1 {[%clk 0:01:59.8]} 35. Rg1 {[%clk 0:01:23.7]} 35...
Rh2 {[%clk 0:01:59.5]} 36. Rg2 {[%clk 0:01:23]} 36... Rh1 {[%clk 0:01:59.6]} 37.
Rg1 {[%clk 0:01:23.3]} 37... Rh2 {[%clk 0:01:59.7]} 1/2-1/2

[Event "*** Titled Tuesday Blitz"]
[Site "Chess.com"]
[Date "2021.03.16"]
[Round "1"]
[White "andriipalchuk"]
[Black "novocane"]
[Result "1-0"]
[WhiteElo "2587"]
[BlackElo "2257"]
[TimeControl "180+1"]
[EndTime "10:04:32 PDT"]
[Termination "andriipalchuk won by resignation"]

1. d4 {[%clk 0:03:00.9]} 1... Nf6 {[%clk 0:02:59.5]} 2. c4 {[%clk 0:02:59.6]}
2... e6 {[%clk 0:02:59]} 3. Nf3 {[%clk 0:02:58.1]} 3... b6 {[%clk 0:02:58.5]} 4.
g3 {[%clk 0:02:57]} 4... Ba6 {[%clk 0:02:57.7]} 5. Bg2 {[%clk 0:02:57.6]} 5...
Be7 {[%clk 0:01:39.3]} 6. Qc2 {[%clk 0:02:49]} 6... O-O {[%clk 0:01:23.8]} 7.
O-O {[%clk 0:02:47.7]} 7... c5 {[%clk 0:01:16]} 8. Ne5 {[%clk 0:02:41.2]} 8...
d5 {[%clk 0:01:15.4]} 9. dxc5 {[%clk 0:02:35.5]} 9... bxc5 {[%clk 0:01:13.9]}
10. Rd1 {[%clk 0:02:34.8]} 10... Bb7 {[%clk 0:01:07.3]} 11. Nc3 {[%clk
0:02:33.4]} 11... Nbd7 {[%clk 0:00:58.2]} 12. Bf4 {[%clk 0:02:15.8]} 12... Nxe5
{[%clk 0:00:28.7]} 13. Bxe5 {[%clk 0:02:16.7]} 13... Bd6 {[%clk 0:00:20]} 14.
Bxf6 {[%clk 0:02:13.5]} 14... Qxf6 {[%clk 0:00:19.4]} 15. cxd5 {[%clk 0:02:14]}
15... exd5 {[%clk 0:00:17.4]} 16. Bxd5 {[%clk 0:02:14.9]} 16... Rab8 {[%clk
0:00:12.9]} 17. Bxb7 {[%clk 0:02:12.3]} 17... Rxb7 {[%clk 0:00:13.8]} 18. Ne4
{[%clk 0:02:12.9]} 1-0

[Event "*** Titled Tuesday Blitz"]
[Site "Chess.com"]
[Date "2021.03.16"]
[Round "1"]
[White "anon132639"]
[Black "Lady_Nika"]
[Result "1-0"]
[WhiteElo "2748"]
[BlackElo "2401"]
[TimeControl "180+1"]
[EndTime "10:04:40 PDT"]
[Termination "anon132639 won by resignation"]

1. Nf3 {[%clk 0:02:54.5]} 1... d5 {[%clk 0:02:58.9]} 2. c4 {[%clk 0:02:54.8]}
2... e6 {[%clk 0:02:54.9]} 3. e3 {[%clk 0:02:54.7]} 3... f5 {[%clk 0:02:39.5]}
4. b3 {[%clk 0:02:53.1]} 4... Nf6 {[%clk 0:02:39.2]} 5. Be2 {[%clk 0:02:46.9]}
5... c6 {[%clk 0:02:38.5]} 6. O-O {[%clk 0:02:46.9]} 6... Bd6 {[%clk 0:02:38.5]}
7. d4 {[%clk 0:02:47.1]} 7... Nbd7 {[%clk 0:02:38.4]} 8. Ba3 {[%clk 0:02:47.5]}
8... Bxa3 {[%clk 0:02:37.6]} 9. Nxa3 {[%clk 0:02:48.4]} 9... O-O {[%clk
0:02:37.8]} 10. Nc2 {[%clk 0:02:27.9]} 10... Ne4 {[%clk 0:02:31.5]} 11. Nce1
{[%clk 0:02:24.6]} 11... Rf6 {[%clk 0:02:31.2]} 12. Nd3 {[%clk 0:02:24.5]} 12...
Rh6 {[%clk 0:02:30.9]} 13. Rc1 {[%clk 0:02:18.8]} 13... g5 {[%clk 0:02:30.1]}
14. Nfe5 {[%clk 0:01:35.8]} 14... g4 {[%clk 0:02:26.7]} 15. f3 {[%clk
0:01:27.1]} 15... gxf3 {[%clk 0:02:19.7]} 16. Rxf3 {[%clk 0:01:21.4]} 16... Qf6
{[%clk 0:02:12.7]} 17. Qe1 {[%clk 0:01:15.7]} 17... Nxe5 {[%clk 0:02:05]} 18.
Nxe5 {[%clk 0:01:16.6]} 18... Kh8 {[%clk 0:01:50.2]} 19. Bd3 {[%clk 0:01:16]}
19... Qe7 {[%clk 0:01:44.3]} 20. Bxe4 {[%clk 0:01:14.8]} 20... dxe4 {[%clk
0:01:44.2]} 21. Rg3 {[%clk 0:01:03.4]} 21... Bd7 {[%clk 0:01:43.9]} 22. Qf2
{[%clk 0:01:00.3]} 22... Be8 {[%clk 0:01:43.1]} 23. Qf4 {[%clk 0:00:59.2]} 23...
Rh4 {[%clk 0:01:40.8]} 24. Nf7+ {[%clk 0:00:54.7]} 24... Qxf7 {[%clk 0:01:37.1]}
25. Qe5+ {[%clk 0:00:53.6]} 1-0

[Event "*** Titled Tuesday Blitz"]
[Site "Chess.com"]
[Date "2021.03.16"]
[Round "1"]
[White "Susal_De_Silva"]
[Black "Speed-O-Sonic"]
[Result "0-1"]
[WhiteElo "2624"]
[BlackElo "2359"]
[TimeControl "180+1"]
[EndTime "10:04:46 PDT"]
[Termination "Speed-O-Sonic won by resignation"]

1. e4 {[%clk 0:03:00.9]} 1... c6 {[%clk 0:02:54.7]} 2. d4 {[%clk 0:03:00.6]}
2... d5 {[%clk 0:02:55.3]} 3. Nc3 {[%clk 0:03:01.5]} 3... dxe4 {[%clk
0:02:55.1]} 4. Nxe4 {[%clk 0:03:02.4]} 4... Nf6 {[%clk 0:02:54.4]} 5. Nxf6+
{[%clk 0:03:02.5]} 5... exf6 {[%clk 0:02:55.3]} 6. c3 {[%clk 0:03:02.8]} 6...
Bd6 {[%clk 0:02:55.6]} 7. Bd3 {[%clk 0:03:03.5]} 7... O-O {[%clk 0:02:56]} 8.
Ne2 {[%clk 0:03:04.4]} 8... Re8 {[%clk 0:02:55.7]} 9. Qc2 {[%clk 0:03:05.3]}
9... h5 {[%clk 0:02:55.2]} 10. O-O {[%clk 0:03:05.3]} 10... h4 {[%clk
0:02:54.6]} 11. h3 {[%clk 0:03:05.8]} 11... Qc7 {[%clk 0:01:15.3]} 12. Bd2
{[%clk 0:03:02.5]} 12... Nd7 {[%clk 0:01:08.3]} 13. Rae1 {[%clk 0:03:01.9]}
13... Nf8 {[%clk 0:01:07.8]} 14. c4 {[%clk 0:03:02.3]} 14... Be6 {[%clk
0:00:46.6]} 15. b3 {[%clk 0:02:56.6]} 15... a5 {[%clk 0:00:44]} 16. c5 {[%clk
0:02:54.2]} 16... Bh2+ {[%clk 0:00:34]} 17. Kh1 {[%clk 0:02:54.3]} 17... Bd5
{[%clk 0:00:34.9]} 18. f4 {[%clk 0:02:45.1]} 18... Bg3 {[%clk 0:00:32]} 19. Nxg3
{[%clk 0:02:45.2]} 19... hxg3 {[%clk 0:00:32.9]} 20. Be4 {[%clk 0:02:43.2]}
20... Qd7 {[%clk 0:00:18.1]} 21. Bc3 {[%clk 0:02:32.6]} 21... Rxe4 {[%clk
0:00:13.5]} 22. Rxe4 {[%clk 0:02:33.5]} 22... Qf5 {[%clk 0:00:12.7]} 23. Rfe1
{[%clk 0:02:17.4]} 23... Re8 {[%clk 0:00:13]} 24. Rxe8 {[%clk 0:02:08.7]} 24...
Qxc2 {[%clk 0:00:13.1]} 0-1

[Event "*** Titled Tuesday Blitz"]
[Site "Chess.com"]
[Date "2021.03.16"]
[Round "1"]
[White "Unknown_IM"]
[Black "QuintilianoR"]
[Result "0-1"]
[WhiteElo "2398"]
[BlackElo "2744"]
[TimeControl "180+1"]
[EndTime "10:05:15 PDT"]
[Termination "QuintilianoR won by resignation"]

1. e4 {[%clk 0:02:58.3]} 1... c5 {[%clk 0:02:59.3]} 2. Nf3 {[%clk 0:02:56.9]}
2... d6 {[%clk 0:02:59.8]} 3. c3 {[%clk 0:02:56.7]} 3... Nf6 {[%clk 0:02:59.6]}
4. Be2 {[%clk 0:02:56.8]} 4... g6 {[%clk 0:02:59.5]} 5. O-O {[%clk 0:02:56.7]}
5... Bg7 {[%clk 0:03:00.1]} 6. Bb5+ {[%clk 0:02:57.1]} 6... Nc6 {[%clk
0:02:59.9]} 7. d4 {[%clk 0:02:56.4]} 7... O-O {[%clk 0:03:00.1]} 8. Re1 {[%clk
0:02:54.5]} 8... cxd4 {[%clk 0:02:56.4]} 9. cxd4 {[%clk 0:02:54.2]} 9... Bg4
{[%clk 0:02:56.9]} 10. Bxc6 {[%clk 0:02:51.7]} 10... bxc6 {[%clk 0:02:56.6]} 11.
h3 {[%clk 0:02:22.8]} 11... Bxf3 {[%clk 0:02:55.3]} 12. Qxf3 {[%clk 0:02:23.7]}
12... Nd7 {[%clk 0:02:52.4]} 13. Rd1 {[%clk 0:02:23.1]} 13... Rb8 {[%clk
0:02:52.1]} 14. Nc3 {[%clk 0:02:22.6]} 14... Qb6 {[%clk 0:02:48.6]} 15. Qd3
{[%clk 0:02:22.2]} 15... Rfe8 {[%clk 0:02:45.2]} 16. b3 {[%clk 0:02:15.8]} 16...
c5 {[%clk 0:02:38.4]} 17. Nd5 {[%clk 0:02:14.7]} 17... Qb7 {[%clk 0:02:38.1]}
18. Bb2 {[%clk 0:02:14.5]} 18... e6 {[%clk 0:02:27]} 19. Ne3 {[%clk 0:02:13.8]}
19... cxd4 {[%clk 0:02:27]} 20. Bxd4 {[%clk 0:02:14.7]} 20... Nc5 {[%clk
0:02:27.4]} 21. Bxc5 {[%clk 0:02:12.2]} 21... dxc5 {[%clk 0:02:24.9]} 22. Rac1
{[%clk 0:02:11.8]} 22... Bd4 {[%clk 0:02:22.7]} 23. Nc4 {[%clk 0:02:03.3]} 23...
Rbd8 {[%clk 0:02:17.7]} 24. Qf3 {[%clk 0:02:03.1]} 24... Rd7 {[%clk 0:02:03.4]}
25. h4 {[%clk 0:01:36.9]} 25... h5 {[%clk 0:02:00.6]} 26. Qf4 {[%clk 0:01:16.1]}
26... Red8 {[%clk 0:01:57.8]} 27. e5 {[%clk 0:01:06]} 27... Bxf2+ {[%clk
0:01:52.5]} 28. Kxf2 {[%clk 0:01:00.1]} 28... Rxd1 {[%clk 0:01:52.3]} 29. Nd6
{[%clk 0:00:54.5]} 29... R1xd6 {[%clk 0:01:47]} 30. exd6 {[%clk 0:00:53.9]}
30... Qd5 {[%clk 0:01:47]} 31. Qc4 {[%clk 0:00:48.6]} 31... Qf5+ {[%clk
0:01:42.8]} 32. Kg1 {[%clk 0:00:48.3]} 32... Rxd6 {[%clk 0:01:42.4]} 33. Qxc5
{[%clk 0:00:45.5]} 33... Rd1+ {[%clk 0:01:42]} 0-1

[Event "*** Titled Tuesday Blitz"]
[Site "Chess.com"]
[Date "2021.03.16"]
[Round "1"]
[White "Andrakhanova"]
[Black "Vice64"]
[Result "0-1"]
[WhiteElo "2259"]
[BlackElo "2589"]
[TimeControl "180+1"]
[EndTime "10:05:21 PDT"]
[Termination "Vice64 won by resignation"]

1. c4 {[%clk 0:02:59.3]} 1... Nf6 {[%clk 0:02:59.2]} 2. Nc3 {[%clk 0:02:59.4]}
2... e5 {[%clk 0:02:59.1]} 3. g3 {[%clk 0:02:59.3]} 3... Nc6 {[%clk 0:02:58.5]}
4. Bg2 {[%clk 0:02:59.5]} 4... Bc5 {[%clk 0:02:59]} 5. e3 {[%clk 0:02:59.7]}
5... d5 {[%clk 0:02:59.2]} 6. Nxd5 {[%clk 0:02:58.7]} 6... Nxd5 {[%clk
0:02:58.8]} 7. cxd5 {[%clk 0:02:57.8]} 7... Nb4 {[%clk 0:02:59]} 8. d4 {[%clk
0:02:53.8]} 8... exd4 {[%clk 0:02:58.5]} 9. exd4 {[%clk 0:02:54.7]} 9... Be7
{[%clk 0:02:58.7]} 10. Ne2 {[%clk 0:02:53]} 10... O-O {[%clk 0:02:58]} 11. Nc3
{[%clk 0:02:48.6]} 11... Bf5 {[%clk 0:02:45.2]} 12. Be3 {[%clk 0:02:39.1]} 12...
Nc2+ {[%clk 0:02:37.5]} 13. Kf1 {[%clk 0:02:39.2]} 13... Nxa1 {[%clk 0:02:37.6]}
14. Qxa1 {[%clk 0:02:40.1]} 14... Bf6 {[%clk 0:02:35.5]} 15. Ke2 {[%clk
0:02:25.2]} 15... Qd6 {[%clk 0:02:33.8]} 16. Rd1 {[%clk 0:02:19.4]} 16... Qa6+
{[%clk 0:02:32]} 17. Ke1 {[%clk 0:02:17.7]} 17... Rfe8 {[%clk 0:02:31.8]} 18.
Qc1 {[%clk 0:01:56.4]} 18... Rad8 {[%clk 0:02:27.8]} 19. a3 {[%clk 0:01:47.7]}
19... c6 {[%clk 0:02:24.8]} 20. b4 {[%clk 0:01:34.8]} 20... Bg4 {[%clk
0:02:17.8]} 21. Rd2 {[%clk 0:01:30.9]} 21... cxd5 {[%clk 0:02:08.7]} 22. Nxd5
{[%clk 0:01:30.4]} 22... Bxd4 {[%clk 0:01:32.3]} 23. Nc7 {[%clk 0:01:11]} 23...
Bxe3 {[%clk 0:01:26]} 0-1

[Event "*** Titled Tuesday Blitz"]
[Site "Chess.com"]
[Date "2021.03.16"]
[Round "1"]
[White "Forantes"]
[Black "bakki78"]
[Result "0-1"]
[WhiteElo "2417"]
[BlackElo "2790"]
[TimeControl "180+1"]
[EndTime "10:05:29 PDT"]
[Termination "bakki78 won by resignation"]

1. Nf3 {[%clk 0:02:59.2]} 1... c5 {[%clk 0:02:41.1]} 2. g3 {[%clk 0:02:58.7]}
2... Nc6 {[%clk 0:02:40.5]} 3. d4 {[%clk 0:02:58.1]} 3... cxd4 {[%clk 0:02:39]}
4. Nxd4 {[%clk 0:02:59]} 4... g6 {[%clk 0:02:39.3]} 5. Bg2 {[%clk 0:02:59]} 5...
Bg7 {[%clk 0:02:39.4]} 6. Nb3 {[%clk 0:02:59.2]} 6... h5 {[%clk 0:02:39.1]} 7.
h4 {[%clk 0:02:58.9]} 7... Nf6 {[%clk 0:02:39.1]} 8. O-O {[%clk 0:02:59]} 8...
d6 {[%clk 0:02:39.3]} 9. Nc3 {[%clk 0:02:57.8]} 9... Bd7 {[%clk 0:02:39.4]} 10.
Nd5 {[%clk 0:02:57.6]} 10... Nxd5 {[%clk 0:02:38.4]} 11. Qxd5 {[%clk 0:02:52.3]}
11... O-O {[%clk 0:02:36.5]} 12. c3 {[%clk 0:02:52.3]} 12... Be6 {[%clk
0:02:35.3]} 13. Qb5 {[%clk 0:02:46.9]} 13... Qc7 {[%clk 0:02:33.9]} 14. Bf4
{[%clk 0:02:45.3]} 14... a6 {[%clk 0:02:30.5]} 15. Qd3 {[%clk 0:02:39.7]} 15...
Rac8 {[%clk 0:02:30.3]} 16. Rac1 {[%clk 0:02:29]} 16... b5 {[%clk 0:02:25.5]}
17. Rfd1 {[%clk 0:02:27.1]} 17... Bc4 {[%clk 0:02:24.2]} 18. Qe3 {[%clk
0:02:23.3]} 18... Ne5 {[%clk 0:02:22.2]} 19. Bh3 {[%clk 0:01:51.5]} 19... Rb8
{[%clk 0:02:18.2]} 20. Bh6 {[%clk 0:01:50]} 20... a5 {[%clk 0:02:13.7]} 21. Bxg7
{[%clk 0:01:49.5]} 21... Kxg7 {[%clk 0:02:13.2]} 22. Qd4 {[%clk 0:01:45.7]}
22... Kg8 {[%clk 0:02:08.1]} 23. f4 {[%clk 0:01:25.8]} 23... Nc6 {[%clk
0:02:04.8]} 24. Qf2 {[%clk 0:01:25.4]} 24... a4 {[%clk 0:02:01.7]} 25. Nd4
{[%clk 0:01:25.4]} 25... Bxa2 {[%clk 0:02:01.1]} 26. f5 {[%clk 0:01:18.2]} 26...
Nxd4 {[%clk 0:01:53.4]} 27. Rxd4 {[%clk 0:01:02.6]} 27... Qc5 {[%clk 0:01:52.9]}
28. Rf1 {[%clk 0:00:44.5]} 28... e5 {[%clk 0:01:45.8]} 29. fxg6 {[%clk
0:00:23.8]} 29... fxg6 {[%clk 0:01:43.2]} 30. Qxf8+ {[%clk 0:00:06.8]} 0-1

[Event "*** Titled Tuesday Blitz"]
[Site "Chess.com"]
[Date "2021.03.16"]
[Round "1"]
[White "Sharpchess22"]
[Black "MartinMatthiesen"]
[Result "1-0"]
[WhiteElo "2722"]
[BlackElo "2384"]
[TimeControl "180+1"]
[EndTime "10:05:30 PDT"]
[Termination "Sharpchess22 won by resignation"]

1. c4 {[%clk 0:03:00.1]} 1... e6 {[%clk 0:02:59.4]} 2. Nf3 {[%clk 0:02:59.6]}
2... d5 {[%clk 0:02:59.4]} 3. d4 {[%clk 0:02:58.4]} 3... Nf6 {[%clk 0:02:59.1]}
4. Nc3 {[%clk 0:02:57.9]} 4... Be7 {[%clk 0:02:58.9]} 5. Bf4 {[%clk 0:02:57.4]}
5... O-O {[%clk 0:02:58.4]} 6. e3 {[%clk 0:02:57.3]} 6... b6 {[%clk 0:02:54.6]}
7. Qc2 {[%clk 0:02:56.3]} 7... c5 {[%clk 0:02:20.8]} 8. Rd1 {[%clk 0:02:30.1]}
8... Nc6 {[%clk 0:01:59.5]} 9. a3 {[%clk 0:02:19.7]} 9... cxd4 {[%clk
0:01:50.7]} 10. cxd5 {[%clk 0:02:11.6]} 10... Nxd5 {[%clk 0:01:43.8]} 11. Nxd5
{[%clk 0:02:10.1]} 11... Qxd5 {[%clk 0:01:43.6]} 12. Bd3 {[%clk 0:02:04.2]}
12... f5 {[%clk 0:00:39]} 13. O-O {[%clk 0:01:57.9]} 13... Bf6 {[%clk
0:00:18.3]} 14. b4 {[%clk 0:01:44.4]} 14... Bb7 {[%clk 0:00:16.8]} 15. Bc4
{[%clk 0:01:41.7]} 15... Qd7 {[%clk 0:00:16.5]} 16. Qb3 {[%clk 0:01:38.7]} 16...
Rfe8 {[%clk 0:00:14.6]} 17. exd4 {[%clk 0:01:30.9]} 17... Rad8 {[%clk
0:00:13.7]} 18. d5 {[%clk 0:01:27.3]} 18... Nb8 {[%clk 0:00:10.9]} 19. dxe6
{[%clk 0:01:25]} 19... Qe7 {[%clk 0:00:11]} 20. Rd7 {[%clk 0:01:13.1]} 1-0